bitfinex/quotes_ETHUSD_20250722
["timestamp","ask_amount","ask_price","bid_price","bid_amount"]
[1753155851546,0.002,3714.6,3714.5,7.90285237]
[1753155851752,0.002,3714.6,3714.5,10.90285237]
[1753155851952,0.002,3714.6,3714.5,8.2107]
[1753155852179,0.002,3714.6,3714.5,10.90285237]
[1753155852373,0.002,3714.6,3714.5,11.90092602]
[1753155852686,0.002,3714.6,3714.5,9.20777365]
[1753155853086,0.002,3714.6,3714.5,11.89992602]
[1753155853288,0.002,3714.6,3714.5,8.2097]
[1753155853591,0.002,3714.6,3714.5,11.45185237]
[1753155853950,0.002,3714.9,3714.6,6.2420799]
[1753155854165,0.002,3714.9,3714.8,7.06963496]
[1753155854370,0.002,3715.5,3715.4,5.69150024]
[1753155854592,0.3397,3717.1,3715.7,4.02698293]
[1753155854593,0.7586,3717.1,3715.7,4.02698293]
[1753155854883,0.7586,3717.1,3715.7,11.81389575]
[1753155855084,0.7586,3717.1,3715.7,11.78698293]
[1753155855289,1e-08,3715.8,3715.7,12.23668293]
[1753155856255,1e-08,3716.0,3715.9,4.02683808]
[1753155856489,1e-08,3716.0,3715.9,13.13553156]
[1753155856720,1e-08,3716.0,3715.9,13.10862018]
[1753155856895,1e-08,3716.0,3715.9,13.55832018]
[1753155858117,1e-08,3716.0,3715.9,9.26932018]
[1753155858323,1e-08,3716.0,3715.9,13.55832018]
[1753155858473,1e-08,3716.0,3715.9,14.02832018]
[1753155859372,1e-08,3716.0,3715.9,14.16272018]
[1753155859713,1e-08,3716.0,3715.9,14.16072018]
[1753155859939,1e-08,3716.0,3715.9,9.32372018]
[1753155860199,1e-08,3716.0,3715.9,14.16072018]
[1753155864073,0.1344,3717.2,3716.0,3.24106566]
[1753155864268,1e-08,3716.1,3716.0,9.94848319]
[1753155864470,1e-08,3716.1,3716.0,9.92157254]
[1753155869085,1e-08,3716.1,3716.0,14.20457254]
[1753155870413,1e-08,3716.1,3716.0,9.92157254]
[1753155870614,1e-08,3716.1,3716.0,14.20457254]
[1753155874600,0.002,3716.9,3716.8,3.24048643]
[1753155874803,0.002,3716.9,3716.8,8.46849129]
[1753155874996,0.002,3716.9,3716.8,8.57598643]
[1753155875442,0.002,3716.9,3716.8,8.12588643]
[1753155880214,0.002,3716.9,3716.8,8.57598643]
[1753155880412,0.002,3716.9,3716.8,9.70264308]
[1753155881052,0.002,3716.9,3716.8,12.70264308]
[1753155881215,0.002,3716.9,3716.8,13.48704308]
[1753155882265,0.002,3717.5,3717.4,6.24005218]
[1753155882461,0.002,3717.5,3717.4,11.0149527]
[1753155882667,0.002,3717.5,3717.4,12.94306211]
[1753155884469,0.002,3717.5,3717.4,12.49296211]
[1753155884675,0.002,3717.6,3717.5,3.23997982]
[1753155885539,0.002,3717.6,3717.4,9.25290993]
[1753155885849,3.85357982,3717.5,3717.4,0.47]
[1753155886057,4.16462627,3717.5,3717.4,0.47]
[1753155886363,4.50832627,3717.5,3717.4,0.47]
[1753155887084,2.69097812,3716.2,3715.9,0.001]
[1753155887291,2.6909325,3716.2,3715.9,0.001]
[1753155887594,0.1344,3716.0,3715.9,0.001]
[1753155888143,0.4781,3716.0,3715.9,0.001]
[1753155889080,0.1344,3716.0,3715.9,0.001]
[1753155889755,0.4781,3716.0,3715.9,0.001]
[1753155890790,3.49677057,3716.0,3715.9,0.001]
[1753155890970,4.30967057,3716.0,3715.9,0.001]
[1753155892471,7.30967057,3716.0,3715.9,0.001]
[1753155893407,11.58467057,3716.0,3715.9,0.001]
[1753155893610,3.51424513,3715.2,3715.1,0.001]
[1753155893913,7.78924513,3715.2,3715.1,0.001]
[1753155894080,8.13294513,3715.2,3715.1,0.001]
[1753155894899,22.63294513,3715.2,3715.1,0.001]
[1753155896132,15.6663,3715.2,3715.1,0.001]
[1753155896411,15.99390491,3715.2,3715.1,0.001]
[1753155896779,15.65020491,3715.2,3715.1,0.001]
[1753155896987,19.9413,3715.2,3715.1,0.001]
[1753155897232,5.0976,3715.2,3715.1,0.001]
[1753155897824,0.8226,3715.2,3715.1,0.001]
[1753155898029,0.8033,3715.9,3715.1,0.001]
[1753155898190,1.147,3715.2,3715.1,0.001]
[1753155900230,1.53085073,3715.2,3715.1,0.001]
[1753155900674,0.8033,3715.2,3715.1,0.001]
[1753155900794,5.0773,3715.6,3715.3,2.69156773]
[1753155900994,0.8033,3715.6,3715.3,2.69156773]
[1753155901222,0.1344,3715.3,3715.1,0.001]
[1753155901498,0.8033,3715.6,3715.1,0.001]
[1753155901694,1.3454,3715.6,3715.1,0.001]
[1753155901995,0.8033,3715.6,3715.5,2.6914278]
[1753155902197,0.8033,3715.6,3715.1,0.001]
[1753155902198,4.273,3715.9,3715.1,0.02791717]
[1753155902395,0.1344,3715.3,3715.1,0.001]
[1753155902626,0.9321,3715.3,3715.1,0.001]
[1753155903568,1.2758,3715.3,3715.1,0.001]
[1753155903715,0.3437,3715.2,3715.1,0.001]
[1753155904049,0.74043124,3715.2,3715.1,0.001]
[1753155904251,0.39673124,3715.2,3715.1,0.001]
[1753155904563,0.9321,3715.3,3715.1,0.001]
[1753155905109,1.2758,3715.3,3715.1,0.001]
[1753155905525,0.9321,3715.3,3715.1,0.001]
[1753155905813,0.1344,3715.3,3715.2,2.69164513]
[1753155906046,0.1344,3715.3,3715.2,4.24237856]
[1753155906353,0.002,3716.1,3715.2,4.24237856]
[1753155906354,0.002,3716.1,3715.3,0.55]
[1753155906512,0.1344,3715.8,3715.4,0.026915]
[1753155906849,0.1344,3715.8,3715.6,2.6913475]
[1753155907233,0.1344,3715.8,3715.7,2.69128293]
[1753155907610,0.1344,3715.8,3715.5,0.48651427]
[1753155907611,0.1344,3715.8,3715.3,2.69150038]
[1753155907812,0.1344,3715.8,3715.6,2.69132432]
[1753155908012,0.1344,3715.8,3715.5,2.69142771]
[1753155908214,0.1344,3715.8,3715.1,2.82710972]
[1753155908554,0.1344,3715.5,3715.4,2.69150024]
[1753155908748,0.1344,3715.5,3715.4,3.15110024]
[1753155908952,0.8257,3716.1,3715.8,2.69120394]
[1753155909158,0.002,3716.1,3715.9,2.69112359]
[1753155909477,0.002,3716.1,3715.5,0.8262]
[1753155909478,0.1364,3716.1,3716.0,3.17757631]
[1753155910138,0.1364,3716.1,3716.0,2.69106566]
[1753155910633,0.1364,3716.1,3716.0,3.17757631]
[1753155910814,0.1364,3716.1,3716.0,3.76445451]
[1753155911648,0.1364,3716.1,3716.0,3.73754386]
[1753155911856,0.1364,3716.1,3716.0,4.28754386]
[1753155912036,0.002,3716.1,3716.0,5.11374386]
[1753155912550,0.002,3716.1,3716.0,5.14065451]
[1753155912751,0.002,3716.1,3716.0,5.11374386]
[1753155915354,0.1344,3716.0,3715.4,0.58436729]
[1753155915664,0.1344,3716.0,3715.3,7.09397129]
[1753155915956,0.1344,3715.8,3715.3,7.09397129]
[1753155916156,0.1344,3715.8,3715.3,4.4024]
[1753155916339,0.1344,3715.8,3715.3,4.268]
[1753155916340,2.69121151,3715.8,3715.3,4.268]
[1753155916548,0.1344,3715.5,3715.3,4.268]
[1753155916743,0.1344,3715.5,3715.1,0.001]
[1753155916921,0.1344,3715.5,3715.1,2.69271095]
[1753155917658,0.1344,3715.5,3715.2,2.69164066]
[1753155917963,0.1344,3715.5,3715.1,0.001]
[1753155918124,0.1344,3715.5,3715.1,0.4396]
[1753155918324,0.1344,3715.5,3715.3,2.69150538]
[1753155918821,0.1344,3715.5,3715.2,2.69157459]
[1753155919022,0.1344,3715.5,3715.1,0.4396]
[1753155919332,0.7884,3715.4,3715.1,0.001]
[1753155919534,0.34798967,3715.3,3715.1,0.001]
[1753155919859,0.69168967,3715.3,3715.1,0.001]
[1753155920060,0.34798967,3715.3,3715.1,0.001]
[1753155922057,0.7884,3715.4,3715.1,0.001]
[1753155922260,3.47990111,3715.4,3715.1,0.001]
[1753155923194,2.69157436,3715.3,3715.1,0.001]
[1753155923396,2.69164513,3715.2,3715.1,0.001]
[1753155923569,3.03528503,3715.3,3715.1,0.001]
[1753155923769,0.99521081,3715.3,3715.1,0.001]
[1753155923973,0.65151081,3715.3,3715.1,0.001]
[1753155924174,0.7884,3715.4,3715.1,0.001]
[1753155924365,2.69135597,3715.6,3715.1,0.001]
[1753155924366,2.69122021,3715.8,3715.2,0.4386]
[1753155924562,5.0952,3715.9,3715.3,2.69156314]
[1753155924563,0.8292,3715.9,3715.3,2.69156314]
[1753155924797,0.8292,3715.9,3715.4,2.69146898]
[1753155925297,0.8292,3715.9,3715.1,2.69270841]
[1753155925298,2.69123852,3715.8,3715.1,0.001]
[1753155925501,2.69123852,3715.8,3715.2,4.265]
[1753155925672,2.69123852,3715.8,3715.1,0.001]
[1753155925673,2.69150849,3715.4,3715.1,0.001]
[1753155925859,0.62135042,3715.8,3715.1,0.001]
[1753155925860,3.48662876,3715.3,3715.1,0.001]
[1753155926062,0.795,3715.3,3715.1,0.001]
[1753155927008,0.795,3715.5,3715.1,0.001]
[1753155927226,1e-08,3716.1,3716.0,3.51846566]
[1753155927366,0.002,3717.8,3716.8,7.06348643]
[1753155927563,0.002,3717.8,3716.8,12.42682407]
[1753155927764,0.002,3717.8,3716.8,17.07489372]
[1753155927965,0.002,3717.8,3717.5,2.68997982]
[1753155928208,0.002,3717.8,3717.5,8.35387961]
[1753155928388,0.002,3717.8,3717.5,10.38647555]
[1753155928863,0.002,3717.8,3717.5,13.38647555]
[1753155929065,0.002,3717.8,3717.5,15.19924051]
[1753155929407,0.002,3717.8,3717.5,15.33364051]
[1753155929866,1e-08,3717.6,3717.5,15.33364051]
[1753155930067,1e-08,3717.6,3717.5,15.46130718]
[1753155930267,0.002,3717.9,3717.8,4.06276276]
[1753155930504,0.002,3718.3,3718.2,2.6894734]
[1753155930713,0.002,3718.3,3718.2,8.70036913]
[1753155930884,0.002,3718.3,3718.2,8.83476913]
[1753155931204,0.002,3718.3,3718.2,7.5254734]
[1753155931410,0.002,3718.3,3718.2,11.8984734]
[1753155931569,0.002,3718.3,3718.2,13.71227875]
[1753155934190,0.1344,3719.5,3718.5,3.23925642]
[1753155934495,0.002,3719.1,3718.5,11.26115642]
[1753155934811,0.002,3719.1,3718.5,11.83415642]
[1753155936130,0.002,3719.1,3718.9,6.99886716]
[1753155936440,0.002,3719.1,3718.9,12.22866083]
[1753155936619,0.002,3719.1,3718.9,12.66726083]
[1753155936801,1e-08,3719.1,3719.0,6.23889486]
[1753155937141,1e-08,3719.1,3719.0,7.43739486]
[1753155937915,1e-08,3719.1,3719.0,11.69839486]
[1753155938113,1e-08,3719.1,3719.0,13.51635739]
[1753155938949,1e-08,3719.1,3719.0,9.25535739]
[1753155939151,1e-08,3719.1,3719.0,13.51535739]
[1753155942052,1e-08,3719.1,3719.0,21.45251789]
[1753155942609,1e-08,3719.1,3719.0,29.31408089]
[1753155942815,0.002,3719.9,3719.2,5.68875026]
[1753155943023,0.002,3719.9,3719.2,8.82963459]
[1753155943317,0.002,3719.9,3719.2,13.66163459]
[1753155944749,0.002,3719.9,3719.2,9.40263459]
[1753155944954,0.002,3719.9,3719.2,11.06975026]
[1753155945153,0.002,3719.9,3719.2,6.81175026]
[1753155945452,0.002,3719.9,3719.2,11.06975026]
[1753155946152,0.002,3719.9,3719.2,10.63115026]
[1753155946910,0.002,3719.9,3719.2,11.06975026]
[1753155947127,0.002,3719.9,3719.2,12.54202557]
[1753155949553,0.002,3719.9,3719.2,7.84542557]
[1753155949712,0.002,3719.9,3719.2,12.10242557]
[1753155951615,0.002,3719.9,3719.2,12.55262557]
[1753155952632,0.002,3719.9,3719.2,20.48978607]
[1753155952829,0.002,3719.9,3719.2,21.30418607]
[1753155953830,0.002,3719.9,3719.2,13.36702557]
[1753155954243,0.002,3719.9,3719.2,8.65982557]
[1753155954444,0.002,3719.9,3719.7,0.55]
[1753155954646,0.002,3719.9,3719.8,4.806]
[1753155954846,0.002,3719.9,3719.8,7.52119973]
[1753155955067,0.002,3719.9,3719.8,7.49431657]
[1753155955970,0.002,3719.9,3719.8,7.94451657]
[1753155956135,0.002,3719.9,3719.8,4.806]
[1753155956335,0.002,3719.9,3719.8,5.67744602]
[1753155956568,0.002,3719.9,3719.8,8.36576259]
[1753155956949,0.002,3719.9,3719.8,5.67744602]
[1753155958938,0.002,3719.9,3719.8,8.36576259]
[1753155959467,0.002,3719.9,3719.8,8.81596259]
[1753155959696,0.002,3719.9,3719.8,8.95036259]
[1753155960186,0.002,3719.9,3719.8,12.77536259]
[1753155960390,0.7742,3720.6,3719.8,10.08704602]
[1753155960562,0.7742,3720.6,3720.2,0.55]
[1753155960750,0.7742,3720.6,3720.3,4.255]
[1753155960751,0.3437,3720.5,3720.3,4.255]
[1753155960955,0.4773,3720.5,3720.4,4.255]
[1753155961686,0.4773,3720.5,3719.8,0.1344]
[1753155961885,0.4773,3720.5,3719.9,4.255]
[1753155962192,0.4773,3720.5,3719.9,6.94322699]
[1753155962498,0.4773,3720.5,3719.9,4.255]
[1753155962995,0.4773,3720.5,3719.9,6.94323044]
[1753155963162,0.4773,3720.5,3720.0,2.71504366]
[1753155963362,0.7742,3720.6,3720.4,2.68787411]
[1753155963677,0.7742,3720.6,3720.5,4.255]
[1753155964760,1.1179,3720.6,3720.5,4.255]
[1753155965168,0.7742,3720.6,3720.5,4.255]
[1753155965578,3.46193853,3720.6,3720.5,4.255]
[1753155965774,3.46193853,3720.6,3719.0,2.89304224]
[1753155965775,0.1336,3720.5,3719.0,2.89304224]
[1753155965998,0.1344,3720.0,3719.3,2.68867719]
[1753155966299,0.1344,3720.0,3719.5,0.55]
[1753155966672,0.1344,3720.0,3719.6,4.254]
[1753155966987,2.68801788,3720.3,3719.9,2.6882443]
[1753155966988,0.1344,3720.3,3719.9,2.6882443]
[1753155967171,0.1344,3720.3,3720.0,6.969039]
[1753155967377,0.1344,3720.3,3720.0,6.94215728]
[1753155967573,0.1344,3720.3,3720.0,4.254]
[1753155969179,0.1344,3720.3,3720.0,6.94216821]
[1753155969405,0.1344,3720.3,3720.1,2.68805457]
[1753155969875,0.1344,3720.3,3720.0,8.43167856]
[1753155970083,0.1344,3720.3,3720.0,5.7435236]
[1753155970568,0.1344,3720.3,3720.0,5.2933236]
[1753155970768,0.1344,3720.3,3720.0,4.254]
[1753155971207,0.1344,3720.3,3720.0,6.94216883]
[1753155971878,0.1344,3720.3,3720.0,4.254]
[1753155972886,0.7949,3720.2,3719.6,0.1344]
[1753155973207,0.7949,3720.2,3719.7,4.27988388]
[1753155973208,0.1344,3719.9,3719.7,4.27988388]
[1753155973814,0.1344,3719.9,3719.7,6.9682696]
[1753155973974,0.1344,3719.9,3719.7,4.253]
[1753155974173,0.7949,3720.2,3719.8,3.13851657]
[1753155974412,0.9293,3720.2,3719.8,3.13851657]
[1753155974653,0.9293,3720.2,3719.9,4.253]
[1753155975124,0.1344,3720.2,3719.7,0.73916426]
[1753155975335,0.1344,3720.2,3719.8,4.253]
[1753155975716,0.3437,3720.1,3719.8,4.253]
[1753155976027,0.1344,3719.9,3719.8,4.253]
[1753155977112,0.1344,3719.9,3719.4,0.55]
[1753155977426,0.7785,3719.8,3719.5,4.252]
[1753155978181,0.1344,3719.6,3719.5,4.252]
[1753155978824,0.1344,3719.6,3719.1,2.68981078]
[1753155978992,0.3437,3719.6,3719.1,0.48063188]
[1753155979177,0.1344,3719.3,3719.2,4.252]
[1753155981540,0.1344,3719.3,3719.1,0.001]
[1753155981750,2.68862518,3719.4,3719.2,4.252]
[1753155981900,0.7785,3719.8,3719.1,0.001]
[1753155982237,3.45025026,3719.2,3719.1,0.001]
[1753155982408,4.09851067,3719.2,3719.1,0.001]
[1753155982596,4.44221067,3719.2,3719.1,0.001]
[1753155983020,7.44221067,3719.2,3719.1,0.001]
[1753155983241,3.45053947,3718.8,3718.7,0.001]
[1753155983444,7.70153947,3718.8,3718.7,0.001]
[1753155983600,3.45082874,3718.4,3718.3,0.001]
[1753155983806,11.38798924,3718.4,3718.3,0.001]
[1753155984184,3.45133511,3717.7,3716.2,0.7786]
[1753155984486,7.70333511,3717.7,3716.0,4.251]
[1753155984686,8.04703511,3717.7,3716.0,4.251]
[1753155984896,11.69529552,3717.7,3716.0,4.251]
[1753155985903,11.69529552,3717.7,3716.0,6.94206279]
[1753155986741,11.69529552,3717.7,3716.0,4.251]
[1753155988206,0.7615,3717.7,3716.6,0.7618]
[1753155988506,7.70333511,3717.7,3716.3,0.78870848]
[1753155988839,8.04703511,3717.7,3716.3,1.1915]
[1753155989015,8.04703511,3717.7,3716.1,2.69098934]
[1753155989222,8.04703511,3717.7,3716.1,0.55]
[1753155989417,8.04703511,3717.7,3716.2,2.69091621]
[1753155989624,8.04703511,3717.7,3716.2,0.4297]
[1753155990515,8.04703511,3717.7,3716.4,2.69076722]
[1753155990715,8.04703511,3717.7,3716.2,0.4297]
[1753155990914,7.70333511,3717.7,3716.6,0.4297]
[1753155991546,8.04703511,3717.7,3716.3,0.02690848]
[1753155991731,8.04703511,3717.7,3716.1,0.9797]
[1753155991932,8.04703511,3717.7,3716.0,3.45285192]
[1753155991933,11.04703511,3717.7,3716.0,0.7618]
[1753155992233,11.04703511,3717.7,3715.9,0.001]
[1753155992437,11.59703511,3717.7,3717.6,1e-08]
[1753155995268,7.34503511,3717.7,3717.6,1e-08]
[1753155995468,11.59703511,3717.7,3717.6,1e-08]
[1753155996062,0.7857,3716.5,3715.6,2.69134967]
[1753155996266,4.252,3716.4,3715.7,0.34784497]
[1753155996556,6.94278281,3716.4,3715.4,0.7871]
[1753155996766,6.94278281,3716.4,3715.4,3.47859175]
[1753155996925,6.94278281,3716.4,3715.4,0.7871]
[1753155996926,4.252,3716.4,3715.4,0.7871]
[1753155997266,4.252,3716.4,3715.6,2.69131806]
[1753155997413,6.9427782,3716.4,3715.4,3.47859622]
[1753155997609,4.252,3716.4,3715.5,2.691394]
[1753155997914,0.7857,3716.5,3715.6,3.12103705]
[1753155998246,4.252,3716.6,3715.7,0.4297]
[1753155998556,0.7631,3716.8,3715.7,0.45661282]
[1753155998715,5.0151,3716.8,3715.8,3.4980105]
[1753155998913,5.0151,3716.8,3715.9,0.39546233]
[1753155999165,2.69055882,3716.7,3715.8,0.8068]
[1753155999331,2.69055882,3716.7,3715.6,2.6913459]
[1753155999332,2.69063122,3716.6,3715.6,2.6913459]
[1753155999711,2.69071492,3716.5,3715.5,3.51311501]
[1753155999967,0.4511,3716.7,3715.5,3.51312736]
[1753156000260,0.4511,3716.7,3715.8,2.69120304]
[1753156000466,5.0151,3716.8,3715.8,0.6660944]
[1753156000671,0.7631,3716.8,3715.9,0.4297]
[1753156000816,0.7507,3717.2,3716.0,0.8217]
[1753156001015,4.251,3717.4,3716.1,1.00660993]
[1753156001212,0.7507,3717.5,3716.8,2.69044949]
[1753156001415,0.4511,3717.9,3716.8,0.4297]
[1753156001416,0.7507,3717.9,3716.8,0.4297]
[1753156001653,0.7507,3717.9,3717.0,2.69033725]
[1753156001863,6.94176753,3717.8,3716.9,0.4297]
[1753156002017,2.6898936,3717.7,3716.9,0.4297]
[1753156002224,2.68990984,3717.6,3716.9,0.4297]
[1753156002420,2.68984861,3717.7,3716.9,0.4297]
[1753156002635,0.1344,3717.0,3716.9,0.4297]
[1753156003255,0.1344,3717.0,3716.7,0.8217]
[1753156003425,0.1344,3716.7,3716.4,1.2254]
[1753156003754,0.1344,3716.6,3716.4,1.2254]
[1753156003920,0.1344,3716.6,3716.2,0.18283099]
[1753156004652,0.1344,3716.6,3716.2,0.4297]
[1753156005043,2.8250613,3716.6,3716.1,0.7957]
[1753156005350,2.8250613,3716.6,3715.6,2.69132884]
[1753156005351,0.1344,3716.2,3715.8,0.7957]
[1753156005557,2.6906427,3716.6,3715.8,3.48688993]
[1753156005849,0.1344,3715.9,3715.8,0.7957]
[1753156006259,0.1344,3715.9,3715.4,5.51592294]
[1753156006422,0.1344,3715.9,3715.5,0.7957]
[1753156006616,0.7763,3716.4,3715.5,1.2254]
[1753156006839,0.1344,3715.7,3715.5,1.2254]
[1753156007623,0.1344,3715.7,3715.3,0.001]
[1753156007957,2.69113952,3715.9,3715.3,0.001]
[1753156008168,2.6912105,3715.8,3715.3,0.001]
[1753156008376,2.69136394,3715.6,3715.3,0.001]
[1753156008546,0.581525,3715.8,3715.3,0.001]
[1753156009036,2.69128293,3715.7,3715.3,0.001]
[1753156009234,3.2727523,3715.8,3715.3,0.001]
[1753156009444,2.69128692,3715.7,3715.3,0.001]
[1753156009828,0.4329,3716.0,3715.3,0.001]
[1753156010147,2.69113808,3715.9,3715.3,0.001]
[1753156010456,2.6909186,3716.3,3715.4,2.69150024]
[1753156010619,0.7763,3716.4,3715.3,0.001]
[1753156010620,0.7763,3716.4,3715.7,2.69128293]
[1753156010823,2.68998214,3717.5,3715.7,2.69128293]
[1753156010824,0.7838,3716.8,3715.8,0.4367]
[1753156011023,0.1344,3716.1,3716.0,2.69103177]
[1753156011224,0.1344,3716.1,3715.7,4.25]
[1753156011225,0.1344,3716.1,3715.7,0.4367]
[1753156011462,2.69077601,3716.4,3715.7,0.4367]
[1753156011665,3.49881771,3716.5,3715.7,3.12797911]
[1753156011828,0.8081,3716.5,3715.7,3.12797911]
[1753156012032,3.49881846,3716.5,3715.7,3.12797911]
[1753156012222,2.69078432,3716.4,3715.7,0.4367]
[1753156012426,0.8081,3716.5,3715.7,3.12796587]
[1753156012727,2.69053295,3716.8,3715.8,0.0269121]
[1753156013029,0.1344,3716.0,3715.9,2.69113808]
[1753156013256,0.1344,3716.0,3715.9,3.12783808]
[1753156013922,0.1344,3716.0,3715.7,5.3349581]
[1753156014124,0.1344,3716.0,3715.3,2.69251768]
[1753156014357,2.69113596,3716.0,3715.4,4.249]
[1753156014556,2.69117342,3715.9,3715.4,4.249]
[1753156014755,2.69107194,3716.0,3715.4,4.249]
[1753156014927,2.69115689,3715.9,3715.4,4.249]
[1753156015341,2.69115534,3715.9,3715.4,4.249]
[1753156016469,2.69115534,3715.9,3715.3,0.7619]
[1753156016470,0.1344,3715.4,3715.3,0.001]
[1753156020374,0.1344,3715.4,3715.3,4.44847268]
[1753156020575,0.7727,3716.5,3715.8,2.69116867]
[1753156020775,0.1344,3715.9,3715.8,4.248]
[1753156020934,0.1344,3715.9,3715.8,6.9392105]
[1753156021261,0.1344,3715.9,3715.3,0.7702]
[1753156021462,0.7727,3716.5,3715.4,4.248]
[1753156021463,0.1344,3715.5,3715.4,4.248]
[1753156021792,0.7727,3716.5,3715.4,4.248]
[1753156021793,0.7727,3716.5,3715.8,2.69119913]
[1753156021989,0.1344,3715.9,3715.6,2.69129504]
[1753156022270,0.1344,3715.9,3715.7,4.6847]
[1753156022487,0.1344,3715.9,3715.7,7.37594256]
[1753156022666,0.1344,3715.9,3715.8,0.4367]
[1753156023189,0.1344,3715.9,3715.7,4.248]
[1753156023553,0.1344,3715.9,3715.7,6.93925923]
[1753156023756,0.1344,3715.9,3715.7,4.6847]
[1753156023956,0.1344,3715.9,3715.8,4.248]
[1753156024175,2.69088618,3716.3,3715.8,4.248]
[1753156024578,2.69092851,3716.2,3715.8,4.248]
[1753156024890,2.69092497,3716.2,3715.8,4.248]
[1753156025457,1.2056,3716.5,3715.8,4.248]
[1753156025656,2.69092603,3716.2,3715.8,4.248]
[1753156025855,2.69099544,3716.1,3715.8,4.248]
[1753156026253,2.6909377,3716.2,3715.8,4.248]
[1753156026679,3.34966799,3716.2,3715.8,4.248]
[1753156026896,0.1344,3715.8,3715.5,4.247]
[1753156027099,0.8298,3715.8,3715.5,4.247]
[1753156027414,0.1344,3715.5,3715.3,0.001]
[1753156027694,3.52101577,3715.8,3715.3,0.001]
[1753156027896,0.8298,3715.8,3715.3,0.001]
[1753156028667,2.69133971,3715.7,3715.3,0.001]
[1753156028870,0.8298,3715.8,3715.3,0.001]
[1753156029488,0.4329,3715.7,3715.3,0.001]
[1753156029686,2.69135536,3715.6,3715.3,0.001]
[1753156030196,3.12418368,3715.7,3715.3,0.001]
[1753156030498,2.69150024,3715.4,3715.3,0.001]
[1753156030863,3.12440024,3715.4,3715.3,0.001]
[1753156032484,0.4329,3715.4,3715.3,0.001]
[1753156032687,4.246,3715.9,3715.3,0.001]
[1753156032996,2.69121259,3715.8,3715.3,0.001]
[1753156033200,2.69114725,3715.9,3715.3,0.001]
[1753156033367,0.4329,3716.3,3715.3,0.001]
[1753156033368,0.4329,3716.3,3715.4,0.4367]
[1753156033563,0.1344,3715.5,3715.4,3.12820024]
[1753156034096,0.7842,3716.4,3715.7,2.69125032]
[1753156034300,0.7842,3716.4,3715.8,0.7891]
[1753156034496,2.69264825,3716.6,3715.8,0.7891]
[1753156034796,2.69264987,3716.6,3715.8,0.7891]
[1753156035002,0.002,3716.6,3715.8,0.7891]
[1753156035392,0.7842,3716.4,3715.3,0.001]
[1753156035594,2.69097666,3716.2,3715.3,2.69251821]
[1753156035772,3.12377014,3716.3,3715.5,2.69140651]
[1753156035974,0.1344,3715.5,3715.4,2.69149506]
[1753156036301,2.69092516,3716.2,3715.4,3.12819506]
[1753156036501,1.09296592,3716.3,3715.5,2.69141686]
[1753156036705,3.12377526,3716.3,3715.5,2.69141686]
[1753156036909,3.12377526,3716.3,3715.4,0.4367]
[1753156036910,0.1344,3715.5,3715.4,0.4367]
[1753156037711,0.1344,3715.5,3715.4,3.12820024]
[1753156038281,0.1344,3715.5,3715.4,4.44800024]
[1753156038636,2.69264898,3716.6,3715.8,2.69119135]
[1753156038983,0.1344,3715.8,3715.7,7.36608055]
[1753156039806,0.1344,3715.8,3715.7,4.6748]
[1753156040318,0.1344,3715.8,3715.7,7.36608293]
[1753156040614,0.1344,3715.8,3715.7,4.6748]
[1753156041412,0.1344,3715.8,3715.7,4.245]
[1753156041713,0.1344,3715.8,3715.3,0.001]
[1753156041714,3.92843541,3715.8,3715.3,0.001]
[1753156041915,0.39284354,3715.7,3715.3,0.001]
[1753156042117,2.69133552,3715.7,3715.3,0.001]
[1753156042438,2.68936707,3715.6,3715.3,0.001]
[1753156042828,3.12806707,3715.6,3715.3,0.001]
[1753156043007,0.4387,3715.5,3715.3,0.001]
[1753156043609,1.2372,3715.8,3715.3,0.001]
[1753156043832,2.69143488,3715.5,3715.3,0.001]
[1753156044034,2.69150024,3715.4,3715.3,0.001]
[1753156044234,3.13020024,3715.4,3715.3,0.001]
[1753156044439,3.90330024,3715.4,3715.3,0.001]
[1753156047052,8.14630024,3715.4,3715.3,0.001]
[1753156047420,11.14630024,3715.4,3715.3,0.001]
[1753156047602,11.73578811,3715.4,3715.3,0.001]
[1753156049246,11.73578811,3715.4,3715.3,1e-08]
[1753156049247,20.22294861,3715.4,3715.3,1e-08]
[1753156049762,3.24164513,3715.2,3715.1,1e-08]
[1753156049907,6.99494513,3715.2,3715.1,1e-08]
[1753156050109,2.69236982,3714.2,3713.8,0.001]
[1753156050365,11.08153331,3714.2,3713.8,0.001]
[1753156050542,3.4458873,3713.9,3713.8,0.001]
[1753156050721,6.4458873,3713.9,3713.8,0.001]
[1753156050903,3.4387,3713.9,3712.1,0.001]
[1753156051107,2.69382037,3712.2,3712.1,0.001]
[1753156051346,6.93682037,3712.2,3712.1,0.001]
[1753156051510,7.37552037,3712.2,3712.1,0.001]
[1753156052147,7.96500824,3712.2,3712.1,0.001]
[1753156053151,5.27118787,3712.2,3712.1,0.001]
[1753156053335,7.96500824,3712.2,3712.1,0.001]
[1753156053506,5.27118787,3712.2,3712.1,0.001]
[1753156053711,7.37552037,3712.2,3712.1,0.001]
[1753156055010,2.69373599,3712.4,3712.1,0.001]
[1753156055245,2.69377363,3712.3,3712.1,0.001]
[1753156055445,4.243,3712.2,3712.1,0.001]
[1753156055649,4.244,3712.3,3712.2,0.4298]
[1753156055808,4.244,3712.3,3712.1,0.001]
[1753156055809,0.1344,3712.2,3712.1,0.001]
[1753156056725,4.3784,3712.2,3712.1,0.001]
[1753156057044,7.77944234,3712.2,3712.1,0.001]
[1753156057648,9.04814234,3712.2,3712.1,0.001]
[1753156057954,12.04814234,3712.2,3712.1,0.001]